fUST/lending_fUST_20241022
["ID","MTS","AMOUNT","RATE_DAILY","PERIOD"]
[340626280,1729553238106,-248.03913286,0.00014576,2]
[340626281,1729553248387,-1931.97619076,0.00014576,2]
[340626282,1729553287087,587.38,0.00010959,2]
[340626283,1729553347085,-330.68486199,0.00013,2]
[340626284,1729553347107,-401.1163379,0.0001457,2]
[340626285,1729553347130,-300.0,0.00014575,2]
[340626286,1729553347152,-300.0,0.00014575,2]
[340626287,1729553347173,-5441.80663665,0.00014576,2]
[340626288,1729553347232,-9060.54047141,0.00014576,2]
[340626289,1729553352192,-4856.63128868,0.00014576,2]
[340626310,1729553432152,-250.0,0.00014805,2]
[340626311,1729553432161,-250.0,0.00014846,2]
[340626312,1729553432170,-250.0,0.00014887,2]
[340626313,1729553432180,-250.0,0.00014927,2]
[340626314,1729553432189,-250.0,0.00014968,2]
[340626315,1729553432198,-250.0,0.00015008,2]
[340626316,1729553432207,-250.0,0.00015049,2]
[340626317,1729553432216,-250.0,0.0001509,2]
[340626318,1729553432225,-250.0,0.0001513,2]
[340626319,1729553432234,-250.0,0.00015171,2]
[340626320,1729553432243,-250.0,0.00015212,2]
[340626321,1729553432253,-250.0,0.00015252,2]
[340626322,1729553432262,-250.0,0.00015293,2]
[340626323,1729553432271,-747.33497426,0.0001532,2]
[340626324,1729553432281,-250.0,0.00015333,2]
[340626325,1729553432290,-250.0,0.00015374,2]
[340626326,1729553432299,-250.0,0.00015415,2]
[340626327,1729553432309,-250.0,0.00015455,2]
[340626328,1729553432318,-250.0,0.00015496,2]
[340626329,1729553432327,-3118.98387056,0.0001551,2]
[340626330,1729553432337,-250.0,0.00015536,2]
[340626331,1729553432346,-250.0,0.00015577,2]
[340626332,1729553432355,-300.0,0.0001589,2]
[340626333,1729553432365,-300.0,0.0001589,2]
[340626334,1729553432374,-159.061861,0.0001589,2]
[340626335,1729553432383,-313.8530913,0.00016078,2]
[340626336,1729553432392,-1000.0,0.00016157,2]
[340626337,1729553432401,-1000.0,0.00016201,2]
[340626338,1729553432410,-8890.20115101,0.00016211,2]
[340626339,1729553432422,-1000.0,0.00016324,2]
[340626340,1729553432431,-1000.0,0.00016328,2]
[340626341,1729553432441,-1000.0,0.00016385,2]
[340626342,1729553432450,-653.77886257,0.00016418,2]
[340626343,1729553432460,-50369.6451989,0.00016418,2]
[340626344,1729553432470,-2162.17846674,0.00016418,2]
[340626345,1729553432480,-487.68174394,0.00016427,2]
[340626346,1729553432489,-151.0,0.00016428,2]
[340626347,1729553432498,-151.0,0.00016428,2]
[340626348,1729553432507,-184.8545,0.00016428,2]
[340626349,1729553432516,-151.0,0.00016428,2]
[340626350,1729553432525,-184.8545,0.00016428,2]
[340626351,1729553432535,-151.0,0.00016428,2]
[340626352,1729553432545,-151.0,0.00016428,2]
[340626353,1729553432554,-151.0,0.00016428,2]
[340626354,1729553432563,-151.0,0.00016428,2]
[340626355,1729553432573,-151.0,0.00016428,2]
[340626356,1729553432582,-151.0,0.00016428,2]
[340626357,1729553432591,-151.0,0.00016428,2]
[340626358,1729553432601,-151.0,0.00016428,2]
[340626359,1729553432611,-151.0,0.00016428,2]
[340626360,1729553432620,-151.0,0.00016428,2]
[340626361,1729553432629,-151.0,0.00016428,2]
[340626362,1729553432639,-151.0,0.00016428,2]
[340626363,1729553432652,-151.0,0.00016428,2]
[340626364,1729553432662,-151.0,0.00016428,2]
[340626365,1729553432672,-151.0,0.00016428,2]
[340626366,1729553432682,-151.0,0.00016428,2]
[340626367,1729553432692,-151.0,0.00016428,2]
[340626368,1729553432701,-151.0,0.00016428,2]
[340626369,1729553432711,-151.0,0.00016428,2]
[340626370,1729553432720,-151.0,0.00016428,2]
[340626371,1729553432730,-151.0,0.00016428,2]
[340626372,1729553432739,-151.0,0.00016428,2]
[340626373,1729553432749,-151.0,0.00016428,2]
[340626374,1729553432759,-151.0,0.00016428,2]
[340626375,1729553432768,-151.0,0.00016428,2]
[340626376,1729553432780,-151.0,0.00016428,2]
[340626377,1729553432790,-151.0,0.00016428,2]
[340626378,1729553432800,-151.0,0.00016428,2]
[340626379,1729553432809,-151.0,0.00016428,2]
[340626380,1729553432820,-151.0,0.00016428,2]
[340626381,1729553432829,-151.0,0.00016428,2]
[340626382,1729553432838,-151.0,0.00016428,2]
[340626383,1729553432849,-151.0,0.00016428,2]
[340626384,1729553432858,-151.0,0.00016428,2]
[340626385,1729553432868,-151.0,0.00016428,2]
[340626386,1729553432877,-151.0,0.00016428,2]
[340626387,1729553432887,-151.0,0.00016428,2]
[340626388,1729553432896,-151.0,0.00016428,2]
[340626389,1729553432905,-39176.3907102,0.00016428,2]
[340626390,1729553432914,-1681.69436302,0.00016428,2]
[340626391,1729553432924,-354.26758132,0.00016437,2]
[340626392,1729553432933,-3079.92018148,0.00016438,2]
[340626393,1729553432943,-34124.24874625,0.00016438,2]
[340626394,1729553432954,-500.0,0.00016438,2]
[340626395,1729553432963,-500.0,0.00016438,2]
[340626396,1729553432973,-500.0,0.00016438,2]
[340626397,1729553432982,-500.0,0.00016438,2]
[340626398,1729553432991,-500.0,0.00016438,2]
[340626399,1729553433000,-500.0,0.00016438,2]
[340626400,1729553433010,-263.46547552,0.00016438,2]
[340626401,1729553433019,-500.0,0.00016438,2]
[340626402,1729553433031,-947.2,0.00016438,2]
[340626403,1729553433040,-500.0,0.00016438,2]
[340626404,1729553433049,-500.0,0.00016438,2]
[340626405,1729553433058,-500.0,0.00016438,2]
[340626406,1729553433067,-500.0,0.00016438,2]
[340626407,1729553433076,-500.0,0.00016438,2]
[340626408,1729553433085,-500.0,0.00016438,2]
[340626409,1729553433095,-500.0,0.00016438,2]
[340626410,1729553433104,-500.0,0.00016438,2]
[340626411,1729553433113,-500.0,0.00016438,2]
[340626412,1729553433123,-500.0,0.00016438,2]
[340626413,1729553433132,-500.0,0.00016438,2]
[340626414,1729553433141,-500.0,0.00016438,2]
[340626415,1729553433150,-500.0,0.00016438,2]
[340626416,1729553433160,-670.31,0.00016438,2]
[340626417,1729553433169,-811.49,0.00016438,2]
[340626418,1729553433178,-500.0,0.00016438,2]
[340626419,1729553433187,-668.88,0.00016438,2]
[340626420,1729553433196,-500.0,0.00016438,2]
[340626421,1729553433206,-500.0,0.00016438,2]
[340626422,1729553433216,-500.0,0.00016438,2]
[340626423,1729553433225,-500.0,0.00016438,2]
[340626424,1729553433235,-500.0,0.00016438,2]
[340626425,1729553433245,-500.0,0.00016438,2]
[340626426,1729553433254,-500.0,0.00016438,2]
[340626427,1729553433263,-500.0,0.00016438,2]
[340626428,1729553433273,-500.0,0.00016438,2]
[340626429,1729553433282,-500.0,0.00016438,2]
[340626430,1729553433292,-500.0,0.00016438,2]
[340626431,1729553433301,-500.0,0.00016438,2]
[340626432,1729553433311,-500.0,0.00016438,2]
[340626433,1729553433321,-500.0,0.00016438,2]
[340626434,1729553433330,-500.0,0.00016438,2]
[340626435,1729553433339,-500.0,0.00016438,2]
[340626436,1729553433348,-500.0,0.00016438,2]
[340626437,1729553433358,-500.0,0.00016438,2]
[340626438,1729553433368,-742.01,0.00016438,2]
[340626439,1729553433377,-500.0,0.00016438,2]
[340626440,1729553433387,-500.0,0.00016438,2]
[340626441,1729553433396,-500.0,0.00016438,2]
[340626442,1729553433405,-500.0,0.00016438,2]
[340626443,1729553433415,-200.0,0.00016438,2]
[340626444,1729553433424,-500.0,0.00016438,2]
[340626445,1729553433434,-500.0,0.00016438,2]
[340626446,1729553433443,-500.0,0.00016438,2]
[340626447,1729553433454,-151.0,0.00016438,2]
[340626448,1729553433463,-500.0,0.00016438,2]
[340626449,1729553433472,-500.0,0.00016438,2]
[340626450,1729553433482,-500.0,0.00016438,2]
[340626451,1729553433492,-500.0,0.00016438,2]
[340626452,1729553433501,-500.0,0.00016438,2]
[340626453,1729553433511,-500.0,0.00016438,2]
[340626454,1729553433520,-500.0,0.00016438,2]
[340626455,1729553433530,-976.22,0.00016438,2]
[340626456,1729553433540,-500.0,0.00016438,2]
[340626457,1729553433549,-500.0,0.00016438,2]
[340626458,1729553433567,-507.23,0.00016438,2]
[340626459,1729553433578,-829.02,0.00016438,2]
[340626460,1729553433588,-500.0,0.00016438,2]
[340626461,1729553433599,-985.51,0.00016438,2]
[340626462,1729553433609,-736.99,0.00016438,2]
[340626463,1729553433619,-500.0,0.00016438,2]
[340626464,1729553433629,-537.09,0.00016438,2]
[340626465,1729553433638,-500.0,0.00016438,2]
[340626466,1729553433648,-151.0,0.00016438,2]
[340626467,1729553433658,-151.0,0.00016438,2]
[340626468,1729553433667,-282.99017,0.00016438,2]
[340626469,1729553433677,-500.0,0.00016438,2]
[340626470,1729553433686,-581.43,0.00016438,2]
[340626471,1729553433696,-500.0,0.00016438,2]
[340626472,1729553433706,-500.0,0.00016438,2]
[340626473,1729553433716,-500.0,0.00016438,2]
[340626474,1729553433725,-500.0,0.00016438,2]
[340626475,1729553433735,-725.01,0.00016438,2]
[340626476,1729553433745,-500.0,0.00016438,2]
[340626477,1729553433754,-500.0,0.00016438,2]
[340626478,1729553433764,-500.0,0.00016438,2]
[340626479,1729553433774,-500.0,0.00016438,2]
[340626480,1729553433784,-151.0,0.00016438,2]
[340626481,1729553433794,-151.0,0.00016438,2]
[340626482,1729553433804,-500.0,0.00016438,2]
[340626483,1729553433813,-151.0,0.00016438,2]
[340626484,1729553433822,-555.96,0.00016438,2]
[340626485,1729553433832,-827.71,0.00016438,2]
[340626486,1729553433842,-711.4,0.00016438,2]
[340626487,1729553433851,-500.0,0.00016438,2]
[340626488,1729553433861,-151.0,0.00016438,2]
[340626489,1729553433872,-819.81,0.00016438,2]
[340626490,1729553433882,-594.98,0.00016438,2]
[340626491,1729553433891,-500.0,0.00016438,2]
[340626492,1729553433901,-500.0,0.00016438,2]
[340626493,1729553433910,-500.0,0.00016438,2]
[340626494,1729553433919,-500.0,0.00016438,2]
[340626495,1729553433929,-537.42,0.00016438,2]
[340626496,1729553433938,-500.0,0.00016438,2]
[340626497,1729553433947,-151.0,0.00016438,2]
[340626498,1729553433956,-151.0,0.00016438,2]
[340626499,1729553433965,-151.0,0.00016438,2]
[340626500,1729553433975,-852.83,0.00016438,2]
[340626501,1729553433985,-151.0,0.00016438,2]
[340626502,1729553433995,-151.0,0.00016438,2]
[340626503,1729553434004,-151.0,0.00016438,2]
[340626504,1729553434013,-151.0,0.00016438,2]
[340626505,1729553434023,-151.0,0.00016438,2]
[340626506,1729553434033,-500.0,0.00016438,2]
[340626507,1729553434042,-500.0,0.00016438,2]
[340626508,1729553434051,-1348.91,0.00016438,2]
[340626509,1729553434060,-1112.63,0.00016438,2]
[340626510,1729553434070,-500.0,0.00016438,2]
[340626511,1729553434079,-500.0,0.00016438,2]
[340626512,1729553434088,-500.0,0.00016438,2]
[340626513,1729553434097,-500.0,0.00016438,2]
[340626514,1729553434107,-500.0,0.00016438,2]
[340626515,1729553434117,-500.0,0.00016438,2]
[340626516,1729553434126,-1004.02,0.00016438,2]
[340626517,1729553434136,-500.0,0.00016438,2]
[340626518,1729553434146,-500.0,0.00016438,2]
[340626519,1729553434155,-500.0,0.00016438,2]
[340626520,1729553434164,-878.12,0.00016438,2]
[340626521,1729553434174,-500.0,0.00016438,2]
[340626522,1729553434184,-1108.4,0.00016438,2]
[340626523,1729553434194,-151.0,0.00016438,2]
[340626524,1729553434203,-721.99,0.00016438,2]
[340626525,1729553434212,-500.0,0.00016438,2]
[340626526,1729553434222,-902.01,0.00016438,2]
[340626527,1729553434232,-500.0,0.00016438,2]
[340626528,1729553434241,-500.0,0.00016438,2]
[340626529,1729553434251,-500.0,0.00016438,2]
[340626530,1729553434261,-866.56,0.00016438,2]
[340626531,1729553434270,-682.35,0.00016438,2]
[340626532,1729553434279,-1229.94,0.00016438,2]
[340626533,1729553434289,-500.0,0.00016438,2]
[340626534,1729553434298,-542.96,0.00016438,2]
[340626535,1729553434308,-500.0,0.00016438,2]
[340626536,1729553434317,-500.0,0.00016438,2]
[340626537,1729553434326,-654.7,0.00016438,2]
[340626538,1729553434335,-500.0,0.00016438,2]
[340626539,1729553434345,-579.19,0.00016438,2]
[340626540,1729553434354,-500.0,0.00016438,2]
[340626541,1729553434364,-1003.93,0.00016438,2]
[340626542,1729553434373,-723.81,0.00016438,2]
[340626543,1729553434383,-947.28,0.00016438,2]
[340626544,1729553434392,-935.99,0.00016438,2]
[340626545,1729553434402,-151.0,0.00016438,2]
[340626546,1729553434412,-151.0,0.00016438,2]
[340626547,1729553434421,-151.0,0.00016438,2]
[340626548,1729553434430,-184.778822,0.00016438,2]
[340626549,1729553434440,-1264.55,0.00016438,2]
[340626550,1729553434449,-500.0,0.00016438,2]
[340626551,1729553434458,-500.0,0.00016438,2]
[340626552,1729553434468,-1842.63,0.00016438,2]
[340626553,1729553434477,-500.0,0.00016438,2]
[340626554,1729553434487,-842.92,0.00016438,2]
[340626555,1729553434496,-949.05,0.00016438,2]
[340626556,1729553434505,-500.0,0.00016438,2]
[340626557,1729553434514,-585.74,0.00016438,2]
[340626558,1729553434524,-500.0,0.00016438,2]
[340626559,1729553434534,-500.0,0.00016438,2]
[340626560,1729553434544,-500.0,0.00016438,2]
[340626561,1729553434553,-725.16,0.00016438,2]
[340626562,1729553434563,-1808.38,0.00016438,2]
[340626563,1729553434572,-776.19,0.00016438,2]
[340626564,1729553434582,-507.14,0.00016438,2]
[340626565,1729553434591,-678.45,0.00016438,2]
[340626566,1729553434601,-506.48,0.00016438,2]
[340626567,1729553434611,-1000.0,0.00016438,2]
[340626568,1729553434626,-781.11,0.00016438,2]
[340626569,1729553434637,-500.0,0.00016438,2]
[340626570,1729553434646,-500.0,0.00016438,2]
[340626571,1729553434656,-1180.32,0.00016438,2]
[340626572,1729553434665,-500.0,0.00016438,2]
[340626573,1729553434675,-500.0,0.00016438,2]
[340626574,1729553434684,-500.0,0.00016438,2]
[340626575,1729553434694,-500.0,0.00016438,2]
[340626576,1729553434703,-1405.21,0.00016438,2]
[340626577,1729553434713,-674.82,0.00016438,2]
[340626578,1729553434722,-500.0,0.00016438,2]
[340626579,1729553434731,-636.54,0.00016438,2]
[340626580,1729553434741,-521.18,0.00016438,2]
[340626581,1729553434751,-514.37,0.00016438,2]
[340626582,1729553434760,-612.3191136,0.00016438,2]
[340626583,1729553434769,-500.0,0.00016438,2]
[340626584,1729553434781,-500.0,0.00016438,2]
[340626585,1729553434790,-500.0,0.00016438,2]
[340626586,1729553434800,-500.0,0.00016438,2]
[340626587,1729553434809,-576.14,0.00016438,2]
[340626588,1729553434819,-311.4656612,0.00016438,2]
[340626591,1729553438392,-583.59536954,0.00016428,2]
[340626598,1729553440229,-18.41057346,0.00016428,2]
[340626599,1729553440239,-602.005943,0.00016428,2]
[340626600,1729553440249,-256.8443388,0.00016438,2]
[340626601,1729553440258,-500.0,0.00016438,2]
[340626602,1729553440268,-761.97,0.00016438,2]
[340626603,1729553440277,-500.0,0.00016438,2]
[340626604,1729553440287,-663.32,0.00016438,2]
[340626605,1729553440297,-572.88,0.00016438,2]
[340626606,1729553440307,-1186.62,0.00016438,2]
[340626607,1729553440317,-500.0,0.00016438,2]
[340626608,1729553440326,-184.8545,0.00016438,2]
[340626609,1729553440336,-184.8545,0.00016438,2]
[340626610,1729553440345,-184.8545,0.00016438,2]
[340626611,1729553440354,-184.8545,0.00016438,2]
[340626612,1729553440363,-184.8545,0.00016438,2]
[340626613,1729553440372,-500.0,0.00016438,2]
[340626614,1729553440382,-184.8545,0.00016438,2]
[340626615,1729553440392,-184.8545,0.00016438,2]
[340626616,1729553440401,-184.8545,0.00016438,2]
[340626617,1729553440411,-184.8545,0.00016438,2]
[340626618,1729553440420,-184.8545,0.00016438,2]
[340626619,1729553440429,-184.8545,0.00016438,2]
[340626620,1729553440439,-184.8545,0.00016438,2]
[340626621,1729553440449,-184.8545,0.00016438,2]
[340626622,1729553440458,-184.8545,0.00016438,2]
[340626623,1729553440467,-184.8545,0.00016438,2]
[340626624,1729553440477,-500.0,0.00016438,2]
[340626625,1729553440486,-184.8545,0.00016438,2]
[340626626,1729553440496,-184.8545,0.00016438,2]
[340626627,1729553440506,-184.854496,0.00016438,2]
[340626628,1729553440516,-151.0,0.00016438,2]
[340626629,1729553440525,-684.82,0.00016438,2]
[340626630,1729553440535,-500.0,0.00016438,2]
[340626631,1729553440545,-151.0,0.00016438,2]
[340626632,1729553440554,-741.44,0.00016438,2]
[340626633,1729553440564,-500.0,0.00016438,2]
[340626634,1729553440573,-500.0,0.00016438,2]
[340626635,1729553440583,-500.0,0.00016438,2]
[340626636,1729553440593,-10160.53,0.00016438,2]
[340626637,1729553440603,-521.72,0.00016438,2]
[340626638,1729553440612,-500.0,0.00016438,2]
[340626639,1729553440622,-1339.2,0.00016438,2]
[340626640,1729553440631,-500.0,0.00016438,2]
[340626641,1729553440641,-500.0,0.00016438,2]
[340626642,1729553440650,-500.0,0.00016438,2]
[340626643,1729553440661,-151.0,0.00016438,2]
[340626644,1729553440671,-151.0,0.00016438,2]
[340626645,1729553440680,-151.0,0.00016438,2]
[340626646,1729553440690,-151.0,0.00016438,2]
[340626647,1729553440699,-151.0,0.00016438,2]
[340626648,1729553440709,-500.0,0.00016438,2]
[340626649,1729553440718,-230.130794,0.00016438,2]
[340626650,1729553440728,-550.35,0.00016438,2]
[340626651,1729553440738,-500.0,0.00016438,2]
[340626652,1729553440747,-715.65,0.00016438,2]
[340626653,1729553440757,-500.0,0.00016438,2]
[340626654,1729553440767,-151.093641,0.00016438,2]
[340626655,1729553440777,-717.91,0.00016438,2]
[340626656,1729553440787,-1332.23,0.00016438,2]
[340626657,1729553440797,-4660.48,0.00016438,2]
[340626658,1729553440806,-554.19,0.00016438,2]
[340626659,1729553440815,-500.0,0.00016438,2]
[340626660,1729553440825,-500.0,0.00016438,2]
[340626661,1729553440835,-1357.88,0.00016438,2]
[340626662,1729553440844,-801.72,0.00016438,2]
[340626663,1729553440853,-515.5,0.00016438,2]
[340626664,1729553440863,-500.0,0.00016438,2]
[340626665,1729553440872,-1108.4,0.00016438,2]
[340626666,1729553440882,-1969.45,0.00016438,2]
[340626667,1729553440891,-707.39,0.00016438,2]
[340626668,1729553440901,-500.0,0.00016438,2]
[340626669,1729553440910,-500.0,0.00016438,2]
[340626670,1729553440919,-1558.7,0.00016438,2]
[340626671,1729553440928,-580.65,0.00016438,2]
[340626672,1729553440937,-931.17,0.00016438,2]
[340626673,1729553440947,-500.0,0.00016438,2]
[340626674,1729553440961,-500.0,0.00016438,2]
[340626675,1729553440970,-506.27581297,0.00016438,2]
[340626676,1729553440980,-1592.63,0.00016438,2]
[340626677,1729553440989,-720.34,0.00016438,2]
[340626678,1729553441000,-151.0,0.00016438,2]
[340626679,1729553441010,-151.0,0.00016438,2]
[340626680,1729553441019,-151.0,0.00016438,2]
[340626681,1729553441029,-151.0,0.00016438,2]
[340626682,1729553441039,-151.0,0.00016438,2]
[340626683,1729553441048,-151.0,0.00016438,2]
[340626684,1729553441058,-151.0,0.00016438,2]
[340626685,1729553441067,-151.0,0.00016438,2]
[340626686,1729553441077,-151.0,0.00016438,2]
[340626687,1729553441086,-742.39,0.00016438,2]
[340626688,1729553441095,-151.0,0.00016438,2]
[340626689,1729553441104,-151.0,0.00016438,2]
[340626690,1729553441114,-151.0,0.00016438,2]
[340626691,1729553441124,-151.0,0.00016438,2]
[340626692,1729553441133,-255.149062,0.00016438,2]
[340626693,1729553441144,-941.9,0.00016438,2]
[340626694,1729553441153,-992.13,0.00016438,2]
[340626695,1729553441162,-505.89,0.00016438,2]
[340626696,1729553441172,-151.0,0.00016438,2]
[340626697,1729553441181,-151.0,0.00016438,2]
[340626698,1729553441190,-151.0,0.00016438,2]
[340626699,1729553441199,-151.0,0.00016438,2]
[340626700,1729553441209,-151.0,0.00016438,2]
[340626701,1729553441219,-151.0,0.00016438,2]
[340626702,1729553441228,-151.0,0.00016438,2]
[340626703,1729553441238,-500.0,0.00016438,2]
[340626704,1729553441247,-500.0,0.00016438,2]
[340626705,1729553441257,-151.0,0.00016438,2]
[340626706,1729553441266,-245.74352,0.00016438,2]
[340626707,1729553441276,-500.0,0.00016438,2]
[340626708,1729553441285,-1037.41,0.00016438,2]
[340626709,1729553441295,-1006.51,0.00016438,2]
[340626710,1729553441304,-151.0,0.00016438,2]
[340626711,1729553441314,-1071.19,0.00016438,2]
[340626712,1729553441323,-151.0,0.00016438,2]
[340626713,1729553441334,-500.0,0.00016438,2]
[340626714,1729553441343,-151.0,0.00016438,2]
[340626715,1729553441354,-151.0,0.00016438,2]
[340626716,1729553441363,-151.0,0.00016438,2]
[340626717,1729553441373,-151.0,0.00016438,2]
[340626718,1729553441383,-151.0,0.00016438,2]
[340626719,1729553441392,-151.0,0.00016438,2]
[340626720,1729553441402,-664.6,0.00016438,2]
[340626721,1729553441411,-151.0,0.00016438,2]
[340626722,1729553441421,-151.0,0.00016438,2]
[340626723,1729553441431,-151.0,0.00016438,2]
[340626724,1729553441440,-151.0,0.00016438,2]
[340626725,1729553441449,-151.0,0.00016438,2]
[340626726,1729553441458,-151.0,0.00016438,2]
[340626727,1729553441468,-191.111328,0.00016438,2]
[340626728,1729553441478,-523.37,0.00016438,2]
[340626729,1729553441488,-500.0,0.00016438,2]
[340626730,1729553441498,-1060.95,0.00016438,2]
[340626731,1729553441507,-896.11,0.00016438,2]
[340626732,1729553441516,-500.0,0.00016438,2]
[340626733,1729553441526,-500.0,0.00016438,2]
[340626734,1729553441536,-500.0,0.00016438,2]
[340626735,1729553441545,-500.0,0.00016438,2]
[340626736,1729553441554,-708.07,0.00016438,2]
[340626737,1729553441564,-811.44,0.00016438,2]
[340626738,1729553441573,-500.0,0.00016438,2]
[340626739,1729553441583,-151.0,0.00016438,2]
[340626740,1729553441592,-741.2,0.00016438,2]
[340626741,1729553441602,-714.03,0.00016438,2]
[340626742,1729553441611,-500.0,0.00016438,2]
[340626743,1729553441621,-885.87,0.00016438,2]
[340626744,1729553441631,-500.0,0.00016438,2]
[340626745,1729553441640,-500.0,0.00016438,2]
[340626746,1729553441649,-500.0,0.00016438,2]
[340626747,1729553441658,-500.0,0.00016438,2]
[340626748,1729553441668,-500.0,0.00016438,2]
[340626749,1729553441677,-1660.37,0.00016438,2]
[340626750,1729553441687,-919.66,0.00016438,2]
[340626751,1729553441696,-986.54,0.00016438,2]
[340626752,1729553441706,-500.0,0.00016438,2]
[340626753,1729553441715,-500.0,0.00016438,2]
[340626754,1729553441724,-500.0,0.00016438,2]
[340626755,1729553441734,-151.0,0.00016438,2]
[340626756,1729553441744,-151.0,0.00016438,2]
[340626757,1729553441754,-151.0,0.00016438,2]
[340626758,1729553441763,-151.0,0.00016438,2]
[340626759,1729553441774,-151.0,0.00016438,2]
[340626760,1729553441783,-151.0,0.00016438,2]
[340626761,1729553441793,-151.0,0.00016438,2]
[340626762,1729553441802,-151.0,0.00016438,2]
[340626763,1729553441811,-151.0,0.00016438,2]
[340626764,1729553441820,-500.0,0.00016438,2]
[340626765,1729553441829,-151.0,0.00016438,2]
[340626766,1729553441838,-151.0,0.00016438,2]
[340626767,1729553441847,-151.0,0.00016438,2]
[340626768,1729553441856,-151.0,0.00016438,2]
[340626769,1729553441866,-151.0,0.00016438,2]
[340626770,1729553441875,-151.0,0.00016438,2]
[340626771,1729553441885,-151.0,0.00016438,2]
[340626772,1729553441895,-832.64,0.00016438,2]
[340626773,1729553441904,-1841.18,0.00016438,2]
[340626774,1729553441913,-500.0,0.00016438,2]
[340626775,1729553441922,-1253.32,0.00016438,2]
[340626776,1729553441931,-500.0,0.00016438,2]
[340626777,1729553441941,-151.0,0.00016438,2]
[340626778,1729553441950,-151.0,0.00016438,2]
[340626779,1729553441960,-151.0,0.00016438,2]
[340626780,1729553441969,-928.29,0.00016438,2]
[340626781,1729553441978,-151.0,0.00016438,2]
[340626782,1729553441988,-151.0,0.00016438,2]
[340626783,1729553441997,-178.394765,0.00016438,2]
[340626784,1729553442006,-589.39,0.00016438,2]
[340626785,1729553442015,-936.06,0.00016438,2]
[340626786,1729553442025,-542.5,0.00016438,2]
[340626787,1729553442035,-514.0,0.00016438,2]
[340626788,1729553442044,-500.0,0.00016438,2]
[340626789,1729553442054,-500.0,0.00016438,2]
[340626790,1729553442063,-1130.08,0.00016438,2]
[340626791,1729553442072,-1058.21,0.00016438,2]
[340626792,1729553442081,-1498.47,0.00016438,2]
[340626793,1729553442091,-500.0,0.00016438,2]
[340626794,1729553442100,-2334.27,0.00016438,2]
[340626795,1729553442109,-500.0,0.00016438,2]
[340626796,1729553442119,-2156.93,0.00016438,2]
[340626797,1729553442128,-740.23,0.00016438,2]
[340626798,1729553442137,-996.61,0.00016438,2]
[340626799,1729553442147,-151.0,0.00016438,2]
[340626800,1729553442156,-151.0,0.00016438,2]
[340626801,1729553442167,-151.0,0.00016438,2]
[340626802,1729553442176,-151.0,0.00016438,2]
[340626803,1729553442186,-500.0,0.00016438,2]
[340626804,1729553442196,-170.997457,0.00016438,2]
[340626805,1729553442206,-500.0,0.00016438,2]
[340626806,1729553442215,-151.0,0.00016438,2]
[340626807,1729553442225,-151.0,0.00016438,2]